bitfinex-derivatives/quotes_SOLF0:USTF0_20241206
["timestamp","ask_amount","ask_price","bid_price","bid_amount"]
[1733476939505,14.89088353,236.51,236.43,2.1129]
[1733476940001,14.89088353,236.51,236.42,2.44]
[1733476940601,2.1127,236.46,236.42,2.44]
[1733476940899,14.89088353,236.51,236.43,2.1129]
[1733476941097,14.89088353,236.51,236.42,2.44]
[1733476941301,2.2647,236.53,236.42,2.44]
[1733476941501,2.2647,236.53,236.45,2.1127]
[1733476941807,14.89088353,236.51,236.44,2.44]
[1733476942306,2.1127,236.47,236.44,2.44]
[1733476942507,2.2647,236.53,236.44,2.44]
[1733476943007,2.2647,236.53,236.45,2.44]
[1733476943203,2.3666,236.54,236.47,2.1126]
[1733476943506,2.1122,236.51,236.47,2.1126]
[1733476944297,12.71,236.77,236.45,2.44]
[1733476944497,9.27106546,236.64,236.48,9.27106546]
[1733476944704,9.27106546,236.64,236.49,2.2853]
[1733476944906,2.1114,236.6,236.56,2.1118]
[1733476945110,9.27106546,236.66,236.57,2.44]
[1733476945302,9.27106546,236.66,236.58,2.44]
[1733476945503,2.1114,236.61,236.58,2.44]
[1733476947206,14.82013332,236.67,236.58,2.44]
[1733476948000,14.82013332,236.67,236.58,4.5515]
[1733476948910,2.1112,236.63,236.58,4.5515]
[1733476949813,2.1112,236.63,236.58,2.44]
[1733476950013,2.1112,236.63,236.59,2.1115]
[1733476951309,2.1111,236.64,236.6,2.1114]
[1733476952017,14.82013332,236.67,236.59,2.1115]
[1733476952512,14.82013332,236.67,236.58,2.44]
[1733476954221,2.111,236.65,236.6,2.1114]
[1733476955319,2.1111,236.64,236.58,4.5515]
[1733476955518,14.82013332,236.67,236.58,2.44]
[1733476955723,14.82013332,236.71,236.58,2.44]
[1733476955910,2.1109,236.67,236.62,2.1113]
[1733476957718,14.82013332,236.71,236.58,2.44]
[1733476958121,2.1107,236.68,236.64,2.111]
[1733476958316,14.82013332,236.71,236.65,2.44]
[1733476958518,14.82013332,236.71,236.66,2.44]
[1733476958716,14.82013332,236.71,236.67,2.44]
[1733476958918,2.1107,236.68,236.57,4.7845]
[1733476959118,2.1107,236.68,236.58,2.44]
[1733476959317,14.82013332,236.71,236.58,2.44]
[1733476959517,2.1106,236.7,236.59,2.4379]
[1733476960017,14.82013332,236.71,236.59,2.4379]
[1733476960218,2.1109,236.66,236.6,2.44]
[1733476960621,2.1108,236.68,236.64,2.1111]
[1733476961119,14.82013332,236.71,236.64,2.1111]
[1733476961319,2.1108,236.67,236.63,2.1111]
[1733476961519,14.82013332,236.71,236.6,2.44]
[1733476962020,2.1107,236.69,236.65,2.1109]
[1733476962216,2.1107,236.69,236.66,2.4]
[1733476962719,14.82013332,236.71,236.66,2.4]
[1733476963222,6.8927,236.81,236.66,2.4]
[1733476963423,2.1107,236.69,236.66,2.4]
[1733476963924,14.82013332,236.74,236.66,2.4]
[1733476964922,2.1103,236.73,236.7,2.1105]
[1733476966024,2.1102,236.74,236.66,2.4]
[1733476966225,14.82013332,236.78,236.66,2.4]
[1733476966426,14.82013332,236.82,236.67,4.7459]
[1733476966730,2.1098,236.78,236.67,4.7459]
[1733476967031,55.77627284,236.84,236.68,2.3715]
[1733476967224,55.77627284,236.84,236.68,6.50709655]
[1733476967427,55.77627284,236.84,236.68,2.3715]
[1733476967827,14.82013332,236.79,236.69,2.4]
[1733476968132,9.25409546,236.76,236.69,2.4]
[1733476969923,9.25409546,236.79,236.69,2.4]
[1733476970123,9.25409546,236.79,236.69,6.72354865]
[1733476970124,2.1099,236.77,236.69,6.72354865]
[1733476970429,2.1099,236.77,236.69,2.4]
[1733476970820,2.1099,236.77,236.69,6.58333002]
[1733476971129,2.1099,236.77,236.69,2.4]
[1733476971324,2.1099,236.77,236.72,2.1103]
[1733476973429,9.25409546,236.82,236.69,6.65850748]
[1733476973821,55.77627284,236.84,236.69,6.65850748]
[1733476974027,9.25409546,236.86,236.7,9.25409546]
[1733476974427,9.25409546,236.86,236.71,2.3409]
[1733476974832,9.25409546,236.86,236.73,9.25409546]
[1733476975728,9.25409546,236.89,236.73,9.25409546]
[1733476976623,11.36299546,236.89,236.76,9.25409546]
[1733476976824,9.25409546,236.89,236.77,7.1733]
[1733476977020,9.25409546,236.89,236.77,11.29870488]
[1733476977423,9.25409546,236.92,236.77,11.29870488]
[1733476977930,9.25409546,236.92,236.79,9.25409546]
[1733476978234,2.1087,236.91,236.85,2.1091]
[1733476978529,2.1087,236.91,236.86,2.4]
[1733476978727,9.25409546,236.95,236.8,2.3337]
[1733476978929,2.1085,236.93,236.87,2.109]
[1733476979234,2.1085,236.93,236.88,2.4]
[1733476979432,9.25409546,236.95,236.88,2.4]
[1733476979834,9.25409546,236.92,236.88,2.4]
[1733476980234,2.1088,236.9,236.88,2.4]
[1733476980629,9.25409546,236.92,236.88,2.4]
[1733476980830,2.1087,236.91,236.88,2.4]
[1733476981136,1.9147,236.99,236.88,2.4]
[1733476981137,9.25409546,236.95,236.88,4.5089]
[1733476981328,9.25409546,236.95,236.88,2.4]
[1733476982336,2.1085,236.93,236.88,2.4]
[1733476982529,9.25409546,236.95,236.88,2.4]
[1733476982834,1.9147,236.99,236.88,2.4]
[1733476983040,9.25409546,236.99,236.88,2.4]
[1733476983334,9.25409546,237.02,236.88,2.4]
[1733476983828,6.3209,237.11,236.88,2.4]
[1733476983829,12.71,237.29,236.95,9.25409546]
[1733476984034,9.25409546,237.15,236.98,9.25409546]
[1733476984233,2.1075,237.05,236.98,2.108]
[1733476984437,2.4,237.22,236.99,2.4]
[1733476984636,9.25409546,237.14,236.99,2.4]
[1733476984840,2.1069,237.12,237.04,2.1075]
[1733476985033,9.25409546,237.14,237.05,2.4]
[1733476985336,9.25409546,237.14,237.06,2.4]
[1733476985537,2.1069,237.11,237.06,2.4]
[1733476985733,9.25409546,237.11,237.07,2.4]
[1733476985938,2.107,237.1,237.08,2.4]
[1733476986139,9.25409546,237.13,236.96,2.3467]
[1733476986340,9.25409546,237.13,236.97,11.65409546]
[1733476987035,2.1073,237.07,237.0,2.1078]
[1733476987237,9.25409546,237.1,237.01,2.4]
[1733476987642,2.1072,237.08,237.02,2.1077]
[1733476987941,9.25409546,237.1,236.97,4.11432812]
[1733476988135,9.25409546,237.1,236.98,2.4]
[1733476988536,9.25409546,237.1,236.99,2.4]
[1733476988731,9.25409546,237.24,236.99,2.4]
[1733476988732,9.25409546,237.13,236.99,2.4]
[1733476988936,9.25409546,237.1,236.96,2.3467]
[1733476989132,9.25409546,237.1,236.97,2.4]
[1733476989332,2.1073,237.07,237.01,2.1078]
[1733476991338,2.1071,237.09,237.04,2.1075]
[1733476991636,9.25409546,237.24,237.05,2.4]
[1733476991637,9.25409546,237.14,237.05,2.4]
[1733476991838,2.1068,237.12,237.06,2.4]
[1733476992045,9.25409546,237.14,237.06,2.4]
[1733476993038,4.7183,237.27,237.06,2.4]
[1733476993240,9.25409546,237.2,237.06,2.4]
[1733476993641,9.25409546,237.2,237.07,2.2969]
[1733476993642,2.1065,237.16,237.07,2.2969]
[1733476994738,2.1066,237.15,237.07,2.2969]
[1733476994940,9.25409546,237.16,237.08,2.4]
[1733476995336,2.1068,237.13,237.08,2.4]
[1733476995540,9.25409546,237.16,237.08,2.4]
[1733476995741,2.1067,237.13,237.03,4.9626]
[1733476995937,9.25409546,237.16,237.04,2.4]
[1733476996341,9.25409546,237.16,237.05,2.4]
[1733476996943,2.1067,237.13,237.05,2.4]
[1733476997149,9.25409546,237.16,237.05,2.4]
[1733476998241,4.7183,237.27,237.05,2.4]
[1733476998546,9.25409546,237.19,237.05,11.65409546]
[1733476999151,2.1066,237.15,237.09,2.107]
[1733476999447,9.25409546,237.19,237.05,11.65409546]
[1733476999640,4.7183,237.27,237.11,2.1068]
[1733476999641,2.1064,237.17,237.11,2.1068]
[1733476999947,9.25409546,237.29,237.12,2.4]
[1733477000151,2.1058,237.24,237.19,2.1062]
[1733477000345,2.1058,237.24,237.2,2.4]
[1733477001146,9.25409546,237.29,237.2,2.4]
[1733477001347,2.1057,237.25,237.2,4.5061]
[1733477002056,2.1053,237.29,237.2,2.4]
[1733477002948,9.25409546,237.33,237.24,2.1057]
[1733477003156,9.25409546,237.33,237.25,2.4]
[1733477003553,9.25409546,237.33,237.17,9.25409546]
[1733477003751,9.25409546,237.29,237.18,2.4]
[1733477004250,2.1059,237.23,237.18,2.4]
[1733477004451,9.25409546,237.29,237.18,2.4]
[1733477004653,2.1061,237.2,237.18,2.4]
[1733477004958,9.25409546,237.26,237.13,43.88]
[1733477005151,2.1063,237.19,237.14,2.4]
[1733477005552,2.4816,237.25,237.14,2.4]
[1733477005758,2.1062,237.19,237.15,2.1065]
[1733477006154,2.1061,237.21,237.16,2.1064]
[1733477006354,2.4816,237.25,237.14,2.4]
[1733477006755,9.25409546,237.3,237.15,2.4]
[1733477007155,9.25409546,237.27,237.13,43.88]
[1733477007456,2.1062,237.19,237.15,2.1065]
[1733477007856,2.1064,237.18,237.14,2.4]
[1733477008064,2.1064,237.18,237.13,43.88]
[1733477008359,9.25409546,237.27,237.14,2.4]
[1733477008752,9.25409546,237.27,237.14,4.5066]
[1733477008957,9.25409546,237.27,237.14,2.4]
[1733477009359,2.1062,237.2,237.15,2.1065]
[1733477009559,9.25409546,237.27,237.15,2.1065]
[1733477010654,2.1062,237.2,237.15,2.1065]
[1733477011262,9.25409546,237.24,237.03,2.4842]
[1733477011565,9.25409546,237.21,237.09,2.4]
[1733477011765,9.25409546,237.21,237.1,2.4]
[1733477011960,9.25409546,237.21,237.11,2.4]
[1733477012665,4.1797,237.23,237.11,2.4]
[1733477013062,2.1063,237.19,237.15,2.1064]
[1733477013255,4.1797,237.23,237.11,2.4]
[1733477013466,2.2711,237.23,237.11,2.4]
[1733477013855,9.25409546,237.27,237.13,9.25409546]
[1733477014059,2.397,237.29,237.13,9.25409546]
[1733477014264,2.397,237.29,237.14,2.4237]
[1733477014569,2.397,237.29,237.21,2.106]
[1733477014754,9.25409546,237.3,237.22,2.4]
[1733477014960,2.1054,237.28,237.23,4.5057]
[1733477015155,2.4526,237.37,237.23,2.4]
[1733477015465,9.25409546,237.33,237.23,2.4]
[1733477015664,2.1054,237.28,237.24,2.1057]
[1733477015963,2.1054,237.28,237.23,2.4]
[1733477016161,2.1054,237.28,237.23,4.5057]
[1733477016765,2.1054,237.28,237.24,2.1057]
[1733477017160,9.25409546,237.33,237.23,2.4]
[1733477017362,2.1052,237.3,237.25,2.1056]
[1733477017863,2.1052,237.3,237.14,2.4237]
[1733477017864,9.25409546,237.3,237.14,2.4237]
[1733477018067,9.25409546,237.27,237.15,2.4]
[1733477018267,9.25409546,237.27,237.19,2.1061]
[1733477018659,9.25409546,237.24,237.2,2.4]
[1733477020165,2.106,237.21,237.17,2.1063]
[1733477020466,2.106,237.21,237.14,2.4237]
[1733477020467,9.25409546,237.24,237.18,2.4]
[1733477020661,9.25409546,237.27,237.19,2.1061]
[1733477020860,9.25409546,237.27,237.18,2.4]
[1733477021362,9.25409546,237.3,237.18,2.4]
[1733477022265,2.1055,237.28,237.18,2.4]
[1733477022868,2.1055,237.27,237.23,2.1058]
[1733477023072,2.1055,237.27,237.24,2.4]
[1733477023661,2.1056,237.26,237.24,2.4]
[1733477023866,9.25409546,237.3,237.24,2.4]
[1733477024370,2.1056,237.26,237.24,2.4]
[1733477024969,9.25409546,237.26,237.14,2.4237]
[1733477025169,2.1061,237.21,237.17,2.1063]
[1733477025470,9.25409546,237.26,237.15,2.4]
[1733477025873,9.25409546,237.26,237.18,2.1062]
[1733477026370,2.1058,237.24,237.2,2.106]
[1733477026574,2.1058,237.24,237.21,2.4]
[1733477026968,2.1059,237.22,237.21,2.4]
[1733477027566,2.1059,237.22,237.2,2.4]
[1733477027764,9.25409546,237.23,237.2,2.4]
[1733477028164,9.25409546,237.23,237.15,2.4]
[1733477028371,9.25409546,237.22,237.15,2.4]
[1733477028570,2.1063,237.19,237.15,4.5065]
[1733477028773,9.25409546,237.22,237.15,4.5065]
[1733477028969,2.3574,237.29,237.15,2.4]
[1733477029171,9.25409546,237.25,237.15,2.4]
[1733477030269,2.1062,237.19,237.16,2.1064]
[1733477031276,9.25409546,237.25,237.15,4.5065]
[1733477031572,2.1063,237.18,237.15,2.4]
[1733477032073,2.1062,237.2,237.15,2.4]
[1733477032774,2.1062,237.19,237.15,2.4]
[1733477033164,9.25409546,237.22,237.15,2.4]
[1733477033568,9.25409546,237.19,237.15,2.4]
[1733477033771,6.6108,237.28,237.15,2.4]
[1733477033967,9.25409546,237.21,237.15,2.4]
[1733477034168,2.1064,237.16,237.15,2.4]
[1733477035972,9.25409546,237.21,237.15,2.4]
[1733477036276,9.25409546,237.24,237.15,2.4]
[1733477036974,2.1064,237.16,237.15,2.4]
[1733477039768,2.1064,237.16,237.04,14.03989546]
[1733477039769,9.25409546,237.18,237.04,2.484]
[1733477039970,9.25409546,237.12,237.04,2.4]
[1733477040380,2.1071,237.09,237.04,4.5075]
[1733477040577,9.25409546,237.12,237.04,4.5075]
[1733477041082,2.1072,237.07,237.04,4.5075]
[1733477041383,2.3325,237.18,237.04,2.4]
[1733477041687,9.25409546,237.15,237.04,2.4]
[1733477041982,2.1072,237.08,237.04,2.4]
[1733477042189,2.1072,237.08,237.04,4.5075]
[1733477042882,2.1073,237.06,237.04,2.4]
[1733477043287,9.25409546,237.15,237.04,2.4]
[1733477043482,11.58659546,237.18,237.04,6.67631951]
[1733477043679,11.58659546,237.18,237.04,2.4]
[1733477043883,2.1069,237.12,237.04,2.4]
[1733477044090,2.1069,237.12,237.04,4.23835278]
[1733477044280,11.58659546,237.18,237.05,2.4]
[1733477044581,9.25409546,237.12,237.02,2.4784]
[1733477044779,9.25409546,237.09,237.05,2.4]
[1733477044983,9.25409546,237.09,237.0,43.84]
[1733477045186,9.25409546,237.09,237.01,2.4]
[1733477045586,2.1076,237.03,237.01,2.4]
[1733477046888,2.3325,237.18,237.01,2.4]
[1733477046889,9.25409546,237.12,237.01,2.4]
[1733477047984,2.1073,237.07,237.02,2.1076]
[1733477048287,2.1073,237.07,237.01,2.4]
[1733477048880,2.1071,237.09,237.01,4.5077]
[1733477049081,9.25409546,237.12,237.01,2.4]
[1733477049783,2.1073,237.06,237.02,2.1077]
[1733477050286,9.25409546,237.12,237.01,2.4]
[1733477050482,2.1071,237.1,237.01,6.56080779]
[1733477050687,9.25409546,237.15,237.01,6.56080779]
[1733477050885,9.25409546,237.12,237.01,2.4]
[1733477051085,2.1072,237.08,237.04,2.1074]
[1733477051489,2.1072,237.08,237.01,2.4]
[1733477051686,2.1071,237.1,237.05,2.1074]
[1733477051887,2.1071,237.1,237.01,2.4]
[1733477052288,12.71,237.35,237.01,6.67257809]
[1733477052488,2.1068,237.12,237.01,2.4]
[1733477052791,2.1068,237.12,237.01,11.65409546]
[1733477052987,2.1068,237.12,237.08,2.1071]
[1733477053189,2.1067,237.13,237.09,2.34]
[1733477053395,2.1067,237.13,237.1,2.34]
[1733477053894,11.36049546,237.16,237.1,2.34]
[1733477054092,2.1064,237.16,237.1,2.34]
[1733477054487,9.25409546,237.19,237.13,2.1067]
[1733477055387,2.1063,237.18,237.13,2.1067]
[1733477055582,2.34,237.29,237.1,2.34]
[1733477055583,9.25409546,237.24,237.1,2.34]
[1733477056289,2.1062,237.19,237.15,2.1065]
[1733477056482,2.1062,237.19,237.16,2.34]
[1733477056689,9.25409546,237.24,237.16,2.34]
[1733477056885,9.25409546,237.24,237.09,4.7104]
[1733477056886,2.1061,237.2,237.17,2.34]
[1733477057187,9.25409546,237.21,237.18,2.34]
[1733477057591,2.1062,237.19,237.18,2.34]
[1733477059891,9.25409546,237.21,237.12,2.34]
[1733477060087,9.25409546,237.13,237.1,2.34]
[1733477060487,2.1069,237.11,237.1,2.34]
[1733477065498,9.25409546,237.13,236.98,2.2767]
[1733477065699,2.1075,237.05,237.01,2.34]
[1733477066089,9.25409546,237.09,237.01,2.34]
[1733477066792,9.25409546,237.09,237.02,2.34]
[1733477067191,9.25409546,237.06,236.96,4.8821]
[1733477067401,9.25409546,237.06,236.97,2.34]
[1733477067402,2.1076,237.03,236.97,2.34]
[1733477067901,2.1077,237.02,236.98,2.108]
[1733477068095,9.25409546,237.03,236.87,9.25409546]
[1733477068395,9.25409546,237.0,236.92,2.34]
[1733477069195,9.25409546,237.0,236.93,2.1085]
[1733477069196,2.1081,236.98,236.93,2.1085]
[1733477069995,2.108,236.99,236.94,2.1084]
[1733477070300,9.25409546,237.03,236.92,2.34]
[1733477070498,9.25409546,237.06,236.92,2.34]
[1733477070700,2.1076,237.03,236.92,2.34]
[1733477071199,9.25409546,237.06,236.92,2.34]
[1733477071397,2.2701,237.1,236.93,9.25409546]
[1733477071602,9.25409546,237.1,236.93,9.25409546]
[1733477071795,9.25409546,237.1,236.94,2.4417]
[1733477072101,9.25409546,237.1,236.94,6.6736456]
[1733477072300,9.25409546,237.07,236.94,6.6736456]
[1733477072496,2.1074,237.06,237.01,2.1077]
[1733477072799,2.1074,237.06,237.02,2.34]
[1733477073001,9.25409546,237.04,236.95,2.1083]
[1733477073301,2.2835,237.11,236.96,2.34]
[1733477073302,9.25409546,237.01,236.96,2.34]
[1733477073500,9.25409546,237.01,236.97,2.34]
[1733477073705,2.108,236.99,236.97,2.34]
[1733477073904,9.25409546,237.01,236.97,2.34]
[1733477075703,2.108,236.99,236.97,2.34]
[1733477075998,9.25409546,237.01,236.87,2.4417]
[1733477076195,9.25409546,236.98,236.87,2.4417]
[1733477076396,9.25409546,236.98,236.92,2.34]
[1733477076703,2.1084,236.95,236.92,2.34]
[1733477077099,9.25409546,236.98,236.92,2.34]
[1733477077299,9.25409546,236.94,236.86,4.8282]
[1733477077502,9.25409546,236.94,236.91,610.92706]
[1733477078699,9.25409546,236.94,236.91,608.58706]
[1733477078700,2.1086,236.92,236.91,608.58706]
[1733477079196,2.1086,236.92,236.91,592.74246]
[1733477079401,2.1086,236.92,236.91,592.47766]
[1733477081802,24.07269546,236.92,236.91,211.71207867]
[1733477082101,11.36269546,236.92,236.91,84.02827182]
[1733477082305,11.36269546,236.92,236.91,81.87747182]
[1733477082507,13.62269546,236.92,236.91,81.87747182]
[1733477084107,13.62269546,236.92,236.91,1e-08]
[1733477085003,12.71,236.9,236.61,2.26]
[1733477085205,9.25409546,236.66,236.61,2.26]
[1733477085606,9.25409546,236.62,236.54,4.13289622]
[1733477085805,9.25409546,236.62,236.53,2.26]
[1733477086005,9.25409546,236.59,236.45,9.25409546]
[1733477086202,9.25409546,236.59,236.46,2.26]
[1733477086399,9.25409546,236.65,236.48,9.25409546]
[1733477086600,9.25409546,236.65,236.48,13.52213646]
[1733477087401,9.25409546,236.68,236.52,9.25409546]
[1733477087609,9.25409546,236.65,236.53,2.26]
[1733477087802,9.25409546,236.62,236.46,9.25409546]
[1733477088001,2.4277,236.74,236.47,2.26]
[1733477088002,14.82771331,236.61,236.47,2.26]
[1733477088211,14.82771331,236.61,236.43,2.448]
[1733477088212,14.82771331,236.61,236.49,2.1124]
[1733477088507,2.26,236.69,236.49,2.1124]
[1733477088508,14.82771331,236.57,236.49,2.1124]
[1733477088702,14.82771331,236.57,236.5,2.26]
[1733477088903,14.82771331,236.57,236.43,2.448]
[1733477088904,14.82771331,236.57,236.48,2.26]
[1733477089110,14.82771331,236.53,236.46,2.26]
[1733477089510,14.82771331,236.49,236.42,2.0]
[1733477089712,14.82771331,236.43,236.42,2.0]
[1733477090106,16.94061331,236.43,236.42,2.0]
[1733477090609,2.1137,236.34,236.21,6.9847]
[1733477090805,29.65542662,236.43,236.22,2.44]
[1733477090806,14.82771331,236.33,236.22,2.44]
[1733477091114,14.82771331,236.33,236.25,2.1144]
[1733477091309,14.82771331,236.33,236.22,2.44]
[1733477091709,14.82771331,236.33,236.23,2.44]
[1733477092308,14.82771331,236.37,236.23,2.44]
[1733477093208,14.82771331,236.37,236.3,2.1139]
[1733477093409,14.82771331,236.37,236.3,4.5539]
[1733477094011,14.82771331,236.37,236.32,2.1137]
[1733477095617,14.82771331,236.37,236.3,2.44]
[1733477096416,14.82771331,236.37,236.32,2.1137]
[1733477097214,15.82771331,236.52,236.36,2.1133]
[1733477097215,14.82771331,236.41,236.36,2.1133]
[1733477097417,14.82771331,236.41,236.3,2.44]
[1733477097619,14.82771331,236.52,236.3,2.44]
[1733477097620,14.82771331,236.45,236.3,2.44]
[1733477099118,14.82771331,236.49,236.3,2.44]
[1733477100016,14.82771331,236.49,236.43,2.1127]
[1733477100214,14.82771331,236.49,236.44,2.46]
[1733477101320,2.1124,236.47,236.44,2.46]
[1733477101516,14.82771331,236.49,236.44,2.46]
[1733477101720,14.82771331,236.45,236.34,1.67496]
[1733477101921,2.1133,236.37,236.34,1.67496]
[1733477102619,14.82771331,236.39,236.34,1.67496]
[1733477103524,14.82771331,236.43,236.34,1.67496]
[1733477103725,2.1128,236.42,236.36,2.1133]
[1733477103922,14.82771331,236.43,236.34,4.11366]
[1733477104122,14.82771331,236.49,236.34,4.11366]
[1733477104431,2.1123,236.48,236.41,2.1129]
[1733477104622,14.82771331,236.49,236.42,2.46]
[1733477104824,14.82771331,236.53,236.42,2.46]
[1733477105022,14.82771331,236.53,236.43,2.4425]
[1733477105217,115.0,236.79,236.43,2.4425]
[1733477105418,14.82771331,236.57,236.44,2.502]
[1733477105721,12.71,236.75,236.44,2.502]
[1733477105722,14.82771331,236.61,236.44,2.502]
[1733477105921,14.82771331,236.61,236.44,6.72752964]
[1733477106122,4.219,236.8,236.44,2.502]
[1733477106123,14.82771331,236.65,236.44,2.502]
[1733477106320,14.82771331,236.65,236.59,2.1112]
[1733477106521,14.82771331,236.65,236.59,4.5712]
[1733477107120,14.82771331,236.65,236.59,2.46]
[1733477107726,14.82771331,236.65,236.61,2.1111]
[1733477107925,14.82771331,236.65,236.59,2.46]
[1733477108624,14.82771331,236.69,236.59,2.46]
[1733477108819,14.82771331,236.69,236.6,6.40169992]
[1733477109122,14.82771331,236.69,236.6,6.41776237]
[1733477109319,12.71,236.87,236.6,6.41776237]
[1733477109320,14.82771331,236.73,236.6,6.41776237]
[1733477109919,14.82771331,236.77,236.6,6.41776237]
[1733477110136,14.82771331,236.81,236.62,14.82771331]
[1733477110317,16.93711331,236.81,236.67,2.1105]
[1733477110520,16.93711331,236.81,236.68,4.7145]
[1733477110521,14.82771331,236.81,236.68,4.7145]
[1733477110718,14.82771331,236.81,236.69,4.8766]
[1733477111322,14.82771331,236.77,236.69,4.8766]
[1733477111521,14.82771331,236.77,236.7,2.44]
[1733477111928,14.82771331,236.73,236.7,2.44]
[1733477112125,14.82771331,236.73,236.6,6.41776237]
[1733477112325,2.1105,236.68,236.61,9.4705]
[1733477112524,14.82771331,236.73,236.61,7.3594]
[1733477113019,14.82771331,236.74,236.62,2.44]
[1733477113624,16.93771331,236.74,236.62,2.44]
[1733477114023,14.82771331,236.7,236.43,10.07980925]
[1733477114226,16.93881331,236.62,236.53,4.8105]
[1733477114425,16.93881331,236.62,236.54,2.44]
[1733477115025,14.82771331,236.62,236.55,2.44]
[1733477116122,14.82771331,236.62,236.44,2.4626]
[1733477116123,14.82771331,236.58,236.45,4.733]
[1733477116324,14.82771331,236.54,236.46,2.44]
[1733477116524,14.82771331,236.58,236.46,2.44]
[1733477117140,2.1114,236.59,236.46,2.44]
[1733477117327,14.82771331,236.62,236.46,2.44]
[1733477117732,14.82771331,236.55,236.45,4.733]
[1733477117932,14.82771331,236.55,236.46,2.44]
[1733477119434,2.112,236.52,236.46,4.5525]
[1733477120528,14.82771331,236.55,236.41,7.184]
[1733477120727,14.82771331,236.51,236.41,4.7899]
[1733477120933,2.1129,236.42,236.38,2.54]
[1733477121130,14.82771331,236.47,236.38,2.54]
[1733477121529,14.82771331,236.43,236.34,2.54]
[1733477121831,14.82771331,236.39,236.3,2.54]
[1733477122029,14.82771331,236.39,236.31,2.54]
[1733477123135,14.82771331,236.39,236.36,1.57175]
[1733477123436,2.1132,236.38,236.36,1.57175]
[1733477124137,16.94081331,236.39,236.36,1.57175]
[1733477124939,14.82771331,236.39,236.36,1.57175]
[1733477125138,2.1129,236.42,236.36,1.57175]
[1733477125334,14.82771331,236.51,236.36,1.57175]
[1733477125730,2.54,236.59,236.37,2.2937]
[1733477125936,14.82771331,236.55,236.37,9.05129255]
[1733477126133,14.82771331,236.55,236.38,2.2582]
[1733477126331,14.82771331,236.55,236.39,2.54]
[1733477126836,16.93941331,236.55,236.39,2.54]
[1733477127741,16.93941331,236.55,236.48,2.1123]
[1733477128041,16.93941331,236.55,236.49,2.54]
[1733477128335,14.82771331,236.59,236.49,2.54]
[1733477128540,14.82771331,236.63,236.49,2.54]
[1733477128840,2.1116,236.57,236.51,2.112]
[1733477129440,2.1111,236.62,236.55,2.1116]
[1733477129640,14.82771331,236.67,236.56,2.54]
[1733477129836,14.82771331,236.63,236.52,2.2675]
[1733477130041,14.82771331,236.63,236.53,2.54]
[1733477130042,2.1115,236.57,236.53,2.54]
[1733477130342,14.82771331,236.59,236.53,2.54]
[1733477130542,2.1117,236.55,236.53,2.54]
[1733477132042,2.1116,236.57,236.53,2.54]
[1733477133037,14.82771331,236.59,236.53,2.54]
[1733477133038,2.1117,236.55,236.53,2.54]
[1733477133441,14.82771331,236.59,236.53,2.54]
[1733477133842,2.1116,236.56,236.53,2.54]
[1733477134753,2.1118,236.54,236.53,2.54]
[1733477136339,2.1115,236.57,236.53,2.54]
[1733477136947,2.1115,236.58,236.53,2.54]
[1733477137245,14.82771331,236.59,236.53,2.54]
[1733477137641,2.1116,236.57,236.53,2.54]
[1733477137843,14.82771331,236.59,236.53,2.54]
[1733477138138,2.1118,236.54,236.53,2.54]
[1733477138344,14.82771331,236.59,236.5,2.54]
[1733477138945,2.1117,236.55,236.5,4.6521]
[1733477140946,14.82771331,236.59,236.5,2.54]
[1733477141248,14.82771331,236.55,236.5,2.54]
[1733477141543,2.1125,236.46,236.42,46.0927]